bitfinex-derivatives/quotes_ETHF0:USTF0_20251118
["timestamp","ask_amount","ask_price","bid_price","bid_amount"]
[1763495002678,0.00476077,3152.3,3152.2,8.81805]
[1763495003477,0.00234513,3152.5,3152.4,1.04871]
[1763495003791,3.2078,3153.0,3152.9,1.04863]
[1763495004584,3.2078,3153.0,3152.6,3.2078]
[1763495004585,0.51883077,3153.3,3153.1,0.51409]
[1763495004782,0.00735544,3153.3,3153.2,1.04858]
[1763495005788,0.00735544,3153.3,3152.6,0.00476077]
[1763495005789,1.04616,3152.7,3152.6,0.00476077]
[1763495006786,1.04616,3152.7,3152.6,0.00822962]
[1763495006982,0.532,3152.0,3151.9,3.72209]
[1763495007177,0.51431,3151.9,3151.1,3.2078]
[1763495007386,3.2078,3151.8,3151.1,3.2078]
[1763495007786,0.5089,3151.7,3151.6,0.51434]
[1763495007987,1.02323,3151.7,3151.6,0.00404133]
[1763495008393,0.5089,3151.7,3151.6,0.00404133]
[1763495008690,3.2078,3151.8,3151.6,0.00404133]
[1763495008883,3.2078,3151.8,3151.6,0.51838133]
[1763495009384,0.5089,3151.7,3151.6,0.00404133]
[1763495010591,6.5089,3151.7,3151.6,0.00404133]
[1763495010783,0.5089,3150.8,3150.7,3.2078]
[1763495011089,0.51446,3150.9,3150.6,0.51449]
[1763495011090,0.5089,3150.7,3150.6,0.51449]
[1763495011293,0.51444,3151.0,3150.7,0.51448]
[1763495011490,0.5089,3150.8,3150.7,0.51448]
[1763495011787,0.51116231,3150.8,3150.7,0.00384732]
[1763495012481,0.00226231,3150.8,3150.7,0.00384732]
[1763495012685,0.51116231,3150.8,3150.7,0.00384732]
[1763495013592,0.51116231,3150.8,3150.7,0.51833732]
[1763495013993,0.00226231,3150.8,3150.7,1.03093732]
[1763495014386,0.51116231,3150.8,3150.7,0.51833732]
[1763495015593,1.02563231,3150.8,3150.7,0.00384732]
[1763495015895,0.51116231,3150.8,3150.7,0.51833732]
[1763495017997,0.00226231,3150.8,3150.7,1.03093732]
[1763495018591,0.00226231,3150.8,3150.7,7.83193732]
[1763495020091,0.00226231,3150.8,3150.7,1.03093732]
[1763495020292,0.00226231,3150.8,3150.7,8.76293732]
[1763495021993,0.00226231,3150.8,3150.7,8.76093732]
[1763495022500,0.00226231,3150.8,3150.7,1.03093732]
[1763495022702,0.00226231,3150.8,3150.7,7.58593732]
[1763495022901,0.00226231,3150.8,3150.7,1.03093732]
[1763495023096,0.51116231,3150.8,3150.7,0.51833732]
[1763495023696,1.02563231,3150.8,3150.7,0.00384732]
[1763495026001,3.7167,3151.5,3151.4,0.5126]
[1763495026306,0.5089,3151.0,3150.9,0.51444]
[1763495026499,3.7167,3151.0,3150.9,0.51444]
[1763495027100,3.72077133,3151.0,3150.9,1.02704]
[1763495027597,0.00407133,3151.0,3150.9,1.02704]
[1763495027995,3.2078,3151.8,3151.2,0.5126]
[1763495028195,3.2078,3151.8,3151.7,1.02693]
[1763495028392,3.2078,3151.8,3150.9,0.51445]
[1763495028393,0.5089,3151.1,3150.9,0.51445]
[1763495028607,3.2078,3151.4,3151.0,6.5099]
[1763495028803,0.5089,3150.9,3150.4,0.00476077]
[1763495029100,0.00226596,3150.9,3150.8,1.02706]
[1763495032914,0.51116596,3150.9,3150.8,1.02706]
[1763495033506,0.5089,3150.8,3150.7,3.72611732]
[1763495033807,0.51116596,3150.9,3150.8,0.51447]
[1763495034103,1.02562596,3150.9,3150.7,3.21164732]
[1763495034305,0.5089,3150.8,3150.7,3.72613732]
[1763495034909,1.02337,3150.8,3150.7,3.21164732]
[1763495035104,1.02337,3150.8,3150.7,0.00384732]
[1763495035309,1.02337,3150.8,3150.7,1.03093732]
[1763495035310,0.5089,3150.8,3150.7,1.03093732]
[1763495035512,1.02337,3150.8,3150.7,0.00384732]
[1763495037011,1.02337,3150.8,3150.7,0.51833732]
[1763495037509,3.21006596,3150.9,3150.8,1.02827]
[1763495038110,3.72452596,3150.9,3150.8,0.5138]
[1763495038308,3.72452596,3150.9,3150.7,0.51833732]
[1763495038708,4.23642596,3150.9,3150.8,0.51447]
[1763495039302,3.72196596,3150.9,3150.8,1.02827]
[1763495039506,4.23642596,3150.9,3150.8,1.02827]
[1763495040214,3.21006596,3150.9,3150.8,1.02827]
[1763495040410,3.72452596,3150.9,3150.8,0.5138]
[1763495040610,1.02637,3150.8,3150.7,0.00384732]
[1763495041308,0.5119,3150.8,3150.7,1.03213732]
[1763495041508,1.02637,3150.8,3150.7,1.03213732]
[1763495041919,1.02637,3150.8,3150.7,0.00384732]
[1763495042312,1.02637,3150.8,3150.7,1.03213732]
[1763495042820,3.21006596,3150.9,3150.8,1.02827]
[1763495043017,3.72452596,3150.9,3150.8,1.02827]
[1763495043215,4.23642596,3150.9,3150.8,0.5138]
[1763495043418,0.51447,3150.8,3150.7,0.51833732]
[1763495043713,0.5119,3150.8,3150.7,0.51833732]
[1763495043915,1.02637,3150.8,3150.7,0.00384732]
[1763495045310,3.21006596,3150.9,3150.8,1.02827]
[1763495045519,0.5119,3150.8,3150.7,0.51833732]
[1763495046114,1.02637,3150.8,3150.7,0.00384732]
[1763495054423,1.02637,3150.8,3150.7,1.03213732]
[1763495055123,0.5119,3150.8,3150.7,1.03213732]
[1763495056822,0.00226596,3150.9,3150.8,1.02827]
[1763495057422,0.00226596,3150.9,3150.8,8.76127]
[1763495058329,0.00226596,3150.9,3150.8,11.0410748]
[1763495059733,0.00226596,3150.9,3150.8,8.75927]
[1763495061217,0.00226596,3150.9,3150.8,8.75727]
[1763495061419,0.00226596,3150.9,3150.8,1.02827]
[1763495061618,0.00226596,3150.9,3150.8,8.75727]
[1763495061822,0.00226596,3150.9,3150.8,1.02827]
[1763495062332,0.00226596,3150.9,3150.8,8.75727]
[1763495062828,0.00226596,3150.9,3150.8,8.75627]
[1763495064226,0.4743,3150.8,3150.7,0.00384732]
[1763495064429,0.98877,3150.8,3150.7,0.00384732]
[1763495065425,0.00226596,3150.9,3150.8,0.4609]
[1763495065830,0.00226596,3150.9,3150.8,0.97537]
[1763495066131,0.47656596,3150.9,3150.8,0.97537]
[1763495066426,0.00226596,3150.9,3150.8,0.97537]
[1763495072136,1.00297,3150.8,3150.7,0.00384732]
[1763495074535,0.51452,3150.5,3150.4,0.00476077]
[1763495074840,0.4885,3149.5,3149.4,0.4935]
[1763495075034,0.4885,3149.5,3149.4,1.00819]
[1763495075235,0.4885,3149.5,3149.4,0.4935]
[1763495075441,0.4885,3149.1,3149.0,1.57830604]
[1763495075741,0.4885,3149.1,3149.0,0.00278028]
[1763495075939,0.4885,3149.1,3149.0,0.79148028]
[1763495076541,0.4885,3149.1,3149.0,0.00278028]
[1763495078538,0.4885,3148.2,3148.1,0.51491]
[1763495078943,0.4885,3148.1,3148.0,0.2952]
[1763495079346,0.00286905,3148.1,3148.0,0.00401144]
[1763495079638,0.49136905,3148.1,3148.0,0.00401144]
[1763495080443,1.00346,3147.8,3147.7,0.00476077]
[1763495080745,4.21126,3147.8,3147.7,0.00476077]
[1763495081144,3.6963,3147.8,3146.7,3.2078]
[1763495081342,3.2078,3147.8,3147.0,0.2952]
[1763495081544,0.4885,3147.0,3146.9,0.26728544]
[1763495081745,3.2078,3147.4,3146.9,0.4935]
[1763495081951,3.2078,3147.4,3147.0,0.2952]
[1763495082250,3.2078,3147.4,3147.0,0.81029]
[1763495082849,0.4885,3147.2,3147.1,1.00857]
[1763495083050,3.48536077,3147.5,3146.7,2.78055495]
[1763495083253,0.4885,3147.4,3147.3,0.51504]
[1763495083441,0.4885,3147.2,3147.1,0.51507]
[1763495083747,0.4885,3147.4,3147.3,0.4935]
[1763495083946,0.4885,3147.0,3146.9,0.5151]
[1763495084457,0.4885,3147.0,3146.9,1.0086]
[1763495084952,0.4885,3146.8,3146.7,0.2752737]
[1763495085146,0.4885,3146.8,3146.7,0.00376008]
[1763495085353,0.4885,3146.8,3146.2,0.51522]
[1763495085752,3.2078,3146.6,3146.1,0.51524]
[1763495085958,0.4885,3146.4,3146.3,0.02418615]
[1763495086449,0.4885,3146.4,3146.3,0.02763288]
[1763495088355,3.2078,3146.6,3146.5,0.4935]
[1763495088760,0.4885,3146.5,3146.4,0.51519]
[1763495088962,0.4885,3146.5,3146.4,0.53937615]
[1763495089155,0.4885,3146.5,3146.4,1.03287615]
[1763495089357,3.4806,3147.0,3145.9,5.70623843]
[1763495089553,3.4806,3147.0,3145.9,2.51623843]
[1763495089759,3.4806,3147.0,3146.4,0.51519]
[1763495089760,0.7613,3146.5,3146.4,0.51519]
[1763495090159,0.4885,3146.3,3145.9,2.51623843]
[1763495090354,0.7613,3146.5,3146.4,0.51519]
[1763495090761,0.2728,3146.5,3145.9,2.51863329]
[1763495090960,0.2728,3146.5,3146.3,0.51521]
[1763495091164,0.2728,3146.5,3146.4,0.4935]
[1763495091360,0.4885,3146.4,3146.3,0.51521]
[1763495091966,0.4885,3146.4,3146.3,1.0087]
[1763495092270,3.6963,3146.6,3146.5,1.00868]
[1763495092667,3.2078,3147.0,3146.9,1.00861]
[1763495092867,3.2078,3147.4,3147.3,0.4935]
[1763495093068,0.4885,3147.3,3147.2,0.51506]
[1763495093268,0.4885,3147.3,3146.7,3.2078]
[1763495093567,3.6963,3147.4,3147.3,0.51505]
[1763495094069,3.6963,3147.4,3147.3,1.00855]
[1763495094663,3.2078,3147.4,3147.3,1.00855]
[1763495095368,3.6963,3147.4,3146.7,3.2078]
[1763495095673,3.6963,3147.4,3147.3,0.51505]
[1763495095874,3.6963,3147.4,3147.3,1.00855]
[1763495097676,0.7961,3147.0,3146.9,0.5151]
[1763495097877,4.0039,3147.0,3146.9,0.5151]
[1763495099581,4.0039,3147.0,3146.3,3.2078]
[1763495099876,0.5123,3146.9,3146.8,0.51512]
[1763495100183,0.5123,3146.0,3145.9,0.78570928]
[1763495100370,3.7201,3146.1,3145.9,0.51766486]
[1763495100572,0.5123,3146.0,3145.9,0.00239486]
[1763495101174,3.2078,3146.1,3146.0,1.02606]
[1763495101374,3.7201,3146.1,3146.0,1.02606]
[1763495101576,0.5123,3146.1,3146.0,1.02606]
[1763495101776,0.5123,3146.9,3146.8,0.51512]
[1763495101975,3.4916,3147.0,3146.8,1.02592]
[1763495102177,0.5123,3146.8,3146.3,0.51519]
[1763495102378,3.4916,3147.0,3146.0,1.02605]
[1763495102379,0.5123,3146.1,3146.0,1.02605]
[1763495102579,3.4916,3147.0,3146.5,1.02597]
[1763495102775,3.4916,3147.0,3146.7,0.51514]
[1763495102981,3.4916,3147.0,3146.0,3.5071]
[1763495103282,0.51511,3146.9,3146.5,0.51516]
[1763495103484,0.51518,3146.5,3146.1,0.51524]
[1763495103678,3.2078,3146.2,3145.9,0.26393375]
[1763495103879,0.7961,3146.0,3145.9,0.51766486]
[1763495104187,1.31136,3146.0,3145.9,0.00239486]
[1763495104377,0.7961,3146.0,3145.9,0.00239486]
[1763495104574,0.7961,3146.0,3145.9,0.51766486]
[1763495104575,0.5123,3146.0,3145.9,0.51766486]
[1763495104786,0.5123,3146.0,3145.9,0.51319486]
[1763495104986,0.7961,3146.0,3145.9,0.00239486]
[1763495105780,0.7961,3146.0,3145.9,0.51766486]
[1763495105985,0.5123,3146.0,3145.9,0.51766486]
[1763495106182,0.5123,3146.0,3145.9,0.00239486]
[1763495106378,3.2078,3146.2,3146.1,1.02604]
[1763495106582,3.2078,3146.7,3146.0,0.2993]
[1763495106780,3.2078,3146.7,3146.5,0.51517]
[1763495106975,3.7201,3146.7,3146.4,0.51518]
[1763495107181,0.5123,3146.5,3146.4,0.51518]
[1763495107577,3.2078,3146.7,3146.0,0.2993]
[1763495107784,3.7201,3146.7,3146.0,0.2993]
[1763495108183,3.2078,3146.7,3146.6,1.02596]
[1763495108583,3.7201,3146.7,3146.6,1.02596]
[1763495108986,3.2078,3146.7,3146.6,1.02596]
[1763495109583,3.2078,3147.1,3147.0,1.27919]
[1763495109782,3.2078,3147.1,3147.0,1.02589]
[1763495110178,3.48536077,3147.5,3147.4,0.51503]
[1763495110382,4.74284645,3147.5,3147.3,0.51505]
[1763495110588,0.5123,3147.4,3147.3,1.02585]
[1763495112284,3.2078,3147.9,3147.5,0.2993]
[1763495112486,0.2838,3148.5,3147.8,3.2078]
[1763495112793,0.5123,3148.2,3148.1,0.51491]
[1763495112993,0.13079968,3148.1,3148.0,0.51492]
[1763495113495,0.13371088,3148.1,3148.0,1.02572]
[1763495113883,0.13371088,3148.1,3148.0,0.51492]
[1763495114895,0.0029112,3148.1,3148.0,1.32502]
[1763495116195,0.5123,3147.9,3147.5,0.2993]
[1763495116488,0.2838,3148.0,3147.4,3.2078]
[1763495116789,0.5123,3147.6,3147.5,0.51501]
[1763495118600,0.5123,3147.6,3147.5,1.02581]
[1763495118992,0.5123,3147.7,3147.6,0.51499]
[1763495120395,0.5123,3147.7,3147.6,1.02579]
[1763495121299,0.4867,3147.4,3147.3,0.51504]
[1763495121597,0.4867,3147.4,3147.2,0.51506]
[1763495121801,0.4867,3147.3,3147.2,0.51506]
[1763495122502,0.4867,3147.6,3147.5,0.515]
[1763495122802,0.4867,3147.8,3147.7,0.51496]
[1763495122999,3.2078,3147.9,3147.8,1.02616]
[1763495123706,0.4896112,3148.1,3148.0,1.02613]
[1763495124001,0.0029112,3148.1,3148.0,4.53243]
[1763495124201,3.72255,3149.1,3148.3,1.02608]
[1763495124406,3.2078,3149.1,3148.3,1.02608]
[1763495124599,3.72256,3149.1,3148.3,1.02608]
[1763495124799,0.51477,3149.0,3148.3,1.02608]
[1763495124999,0.51478,3148.9,3148.3,1.02608]
[1763495125194,0.00842044,3148.4,3148.3,1.02845085]
[1763495125400,0.4867,3148.7,3148.6,0.51483]
[1763495125596,0.4867,3148.7,3148.5,0.2985]
[1763495125799,0.4867,3148.4,3148.3,0.00237085]
[1763495126004,0.51479,3148.9,3148.4,0.51486]
[1763495126301,0.51479,3148.9,3148.3,0.00237085]
[1763495126302,0.4867,3148.4,3148.3,0.00237085]
[1763495126503,1.00157,3148.4,3148.3,0.00237085]
[1763495127204,0.4867,3148.4,3148.3,0.00237085]
[1763495127602,1.00157,3148.4,3148.3,0.00237085]
[1763495128412,0.4886,3147.2,3147.1,3.2078]
[1763495128712,0.4886,3147.1,3147.0,0.00476077]
[1763495129413,0.4886,3147.1,3147.0,0.00710083]
[1763495129814,0.4886,3147.1,3147.0,8.3e-07]
[1763495132511,3.2078,3147.2,3147.1,1.00568]
[1763495133212,2.82619032,3147.2,3147.1,1.00568]
[1763495134004,3.31479032,3147.2,3147.0,8.3e-07]
[1763495134216,3.34126032,3147.2,3147.0,8.3e-07]
[1763495135408,0.4886,3146.4,3146.3,0.5152]
[1763495135913,3.2078,3146.7,3146.2,3.2078]
[1763495136112,3.2078,3147.1,3146.9,0.5151]
[1763495136318,0.4886,3147.0,3146.9,0.00328373]
[1763495138511,3.72599318,3147.1,3146.9,0.00328373]
[1763495138512,3.21091318,3147.1,3147.0,0.7749]
[1763495138714,0.00311318,3147.1,3147.0,0.7749]
[1763495138918,0.00311318,3147.1,3147.0,6.7749]
[1763495139223,3.2078,3147.5,3147.4,0.4906]
[1763495139815,3.2078,3147.9,3147.5,0.2843]
[1763495140019,3.21020667,3147.9,3147.5,0.2843]
[1763495140218,0.00240667,3147.9,3147.6,0.51499]
[1763495140418,0.00240667,3147.9,3147.8,0.4906]
[1763495141120,0.4886,3147.6,3147.4,0.00476077]
[1763495141424,0.4886,3147.6,3147.4,0.51979077]
[1763495141621,0.51497,3147.8,3147.4,0.51979077]
[1763495141820,1.00361,3147.5,3147.4,0.00476077]
[1763495143115,3.8298248,3147.5,3147.4,0.00476077]
[1763495146721,3.3148148,3147.5,3147.4,0.51979077]
[1763495147522,3.2078,3147.5,3147.4,1.01039077]
[1763495151126,3.72515667,3147.9,3147.8,0.4906]
[1763495151629,3.72515667,3147.9,3147.8,1.00556]
[1763495151928,3.21020667,3147.9,3147.8,1.00556]
[1763495152115,3.21020667,3147.9,3147.8,0.4906]
[1763495152116,3.72515667,3147.9,3147.8,0.4906]
[1763495152319,3.21020667,3147.9,3147.8,1.00556]
[1763495152722,0.00240667,3147.9,3147.8,1.00556]
[1763495153122,0.51491,3148.2,3148.0,0.2843]
[1763495153630,0.51491,3148.2,3148.0,0.79923]
[1763495154027,1.00665247,3148.2,3148.1,0.51491]
[1763495154333,0.49174247,3148.2,3148.1,1.00551]
[1763495154931,1.00664247,3148.2,3148.1,1.00551]
[1763495155135,0.49174247,3148.2,3148.1,1.00551]
[1763495155334,0.00314247,3148.2,3148.1,4.21331]
[1763495156335,0.00314247,3148.2,3148.1,1.00551]
[1763495156726,0.00314247,3148.2,3148.1,0.4906]
[1763495156930,0.4886,3147.9,3147.8,0.51496]
[1763495158027,0.00314247,3148.2,3148.0,0.7351]
[1763495158642,0.51491,3148.1,3148.0,1.25001]
[1763495159836,0.93441,3148.1,3148.0,1.25001]
[1763495160039,0.93441,3148.1,3148.0,0.78001]
[1763495160336,0.51495,3147.9,3147.5,0.2843]
[1763495161142,0.51495,3147.9,3147.8,0.51496]
[1763495161436,0.51495,3147.9,3147.8,0.98496]
[1763495161734,0.00314247,3148.2,3148.1,0.47]
[1763495161931,0.51491,3148.1,3148.0,0.78001]
[1763495162129,0.93754247,3148.2,3148.1,0.51491]
[1763495162332,0.93754247,3148.2,3148.1,0.98491]
[1763495162333,0.00314247,3148.2,3148.1,0.98491]
[1763495163233,0.51804247,3148.2,3148.1,0.98491]
[1763495164030,0.51804247,3148.2,3147.7,3.2078]
[1763495164031,0.93446,3147.8,3147.7,3.2078]
[1763495164237,0.4195,3147.8,3147.7,3.72278]
[1763495164433,0.93445,3148.0,3147.9,0.51495]
[1763495164636,0.00314247,3148.2,3147.6,0.061]
[1763495164637,0.51496,3147.9,3147.8,0.51496]
[1763495164834,0.93446,3147.9,3147.8,0.51496]
[1763495165138,0.93451,3147.5,3147.3,3.2078]
[1763495165339,0.4195,3147.5,3147.3,3.2078]
[1763495165640,0.4195,3147.5,3147.4,0.51979077]
[1763495165836,3.2078,3148.0,3147.5,0.7351]
[1763495166034,0.515,3147.6,3147.5,0.7351]
[1763495166240,0.515,3147.6,3147.5,1.25011]
[1763495166437,0.51498,3147.7,3147.5,1.25011]
[1763495166742,0.515,3147.6,3147.5,1.25011]
[1763495167741,0.51496,3147.9,3147.8,0.47]
[1763495168246,0.51496,3147.8,3147.7,0.51498]
[1763495168444,0.93446,3147.8,3147.7,0.51498]
[1763495169645,0.51496,3147.8,3147.7,0.98498]
[1763495169844,3.2078,3148.0,3147.9,0.98495]
[1763495170040,0.51805247,3148.2,3147.5,0.2651]
[1763495170041,0.00314247,3148.2,3148.1,0.98491]
[1763495170243,0.42264247,3148.2,3148.1,0.51491]
[1763495171748,0.93754247,3148.2,3148.1,0.51491]
[1763495172949,0.9345,3147.6,3147.5,0.51501]
[1763495173145,4.1423,3147.6,3147.5,0.51501]
[1763495173347,0.93451,3147.5,3147.4,0.51979077]
[1763495173548,0.93451,3147.5,3147.4,0.00476077]
[1763495174847,1.06231,3147.5,3147.4,0.00476077]
[1763495175446,0.93451,3147.5,3147.4,0.00476077]
[1763495176550,1.66447556,3147.5,3147.4,0.00476077]
[1763495177347,0.93451,3147.5,3147.4,0.00476077]
[1763495178551,0.92983,3146.8,3146.7,0.51514]
[1763495178952,0.92983,3146.8,3146.7,0.98514]
[1763495179150,0.92983,3146.8,3146.7,0.47]
[1763495179451,0.92988,3146.5,3146.4,0.00476077]
[1763495179650,0.92988,3146.5,3146.4,0.0074162]
[1763495180658,0.82238,3146.5,3146.4,0.0074162]
[1763495187357,3.72294,3146.7,3146.6,0.91806]
[1763495187557,3.99844,3146.7,3146.6,0.4029]
[1763495188057,0.79066,3146.6,3146.5,0.2527]
[1763495188459,0.79066,3146.6,3146.5,0.6556]
[1763495189655,0.79066,3146.6,3146.5,0.2527]
[1763495190458,0.51532,3145.6,3145.5,0.2651]
[1763495190660,0.51532,3145.6,3145.5,1.18334]
[1763495191055,0.51532,3145.6,3145.5,0.668]
[1763495191468,0.79376992,3145.6,3145.5,0.0040109]
[1763495192161,0.2755,3145.1,3144.3,3.2078]
[1763495192459,3.72329,3144.6,3144.3,0.51554]
[1763495192661,3.72329,3144.6,3144.5,0.6556]
[1763495193155,3.72329,3144.6,3144.5,0.658705]
[1763495193355,3.99879,3144.6,3144.5,0.255805]
[1763495194460,3.72329,3144.6,3144.5,0.658705]
[1763495195562,3.99879,3144.6,3144.5,0.658705]
[1763495196063,3.2078,3144.6,3144.5,7.174205]
[1763495196362,0.51546,3144.8,3144.6,0.51549]
[1763495196555,3.2078,3145.0,3144.6,0.51548]
[1763495196961,0.51545,3144.9,3144.6,0.51549]
[1763495197162,0.51546,3144.8,3144.7,0.4029]
[1763495198061,0.79099,3144.6,3144.5,0.255805]
[1763495198453,3.99879,3144.6,3144.5,0.003105]
[1763495199466,0.51562,3143.9,3143.4,3.2078]
[1763495199664,3.72342,3143.9,3143.4,3.2078]
[1763495199862,3.2078,3143.9,3143.8,0.91852]
[1763495200467,3.2078,3143.9,3143.8,0.92180937]
[1763495200767,0.51556,3144.2,3144.1,0.4029]
[1763495200964,0.51557,3144.1,3144.0,0.2527]
[1763495201161,3.2078,3144.3,3143.8,3.21108937]
[1763495201362,0.2755,3143.9,3143.8,3.72669937]
[1763495201555,3.2078,3143.9,3143.8,0.92179937]
[1763495202154,3.2078,3143.9,3143.8,0.51889937]
[1763495202359,3.4833,3143.9,3143.8,0.51889937]
[1763495202668,3.72334,3144.3,3144.2,0.4029]
[1763495203161,0.51555,3144.2,3144.0,0.76828]
[1763495203563,0.51557,3144.1,3144.0,1.17118]
[1763495203967,3.2078,3144.3,3144.0,1.17118]
[1763495204166,0.51556,3144.2,3144.1,0.91847]
[1763495204465,3.72334,3144.3,3144.1,0.91847]
[1763495204661,0.51555,3144.2,3144.1,0.91847]
[1763495204866,3.72335,3144.3,3144.1,0.91847]
[1763495205066,0.51555,3144.2,3144.1,0.91847]
[1763495205364,0.79105,3144.2,3144.1,0.4029]
[1763495205762,0.51555,3144.2,3144.1,0.91847]
[1763495206664,0.51555,3144.2,3144.1,0.4029]
[1763495206862,0.51555,3144.2,3144.1,0.91847]
[1763495207571,3.2078,3144.3,3144.2,0.91845]
[1763495207770,3.2078,3144.3,3144.0,0.2527]
[1763495207771,3.2078,3144.7,3144.5,0.7682]
[1763495207967,1.57803209,3144.6,3144.5,0.6556]
[1763495208159,1.57803209,3144.6,3144.5,0.2527]
[1763495210070,0.51554,3144.3,3144.2,0.91845]
[1763495211070,0.2755,3144.5,3144.4,0.51551]
[1763495211367,1.07595327,3144.5,3144.4,0.51551]
[1763495211671,0.80045327,3144.5,3144.4,0.91841]
[1763495211864,1.31595327,3144.5,3144.4,0.4029]
[1763495212065,0.80045327,3144.5,3144.4,0.91842]
[1763495212264,3.72328,3144.7,3144.6,0.4029]
[1763495212465,4.52419854,3144.7,3144.6,0.4029]
[1763495213373,4.52419854,3144.7,3144.6,0.91839]
[1763495214173,4.00871854,3144.7,3144.6,0.91839]
[1763495215272,4.52418854,3144.7,3144.6,0.91839]
[1763495215570,3.21256864,3145.1,3145.0,0.6556]
[1763495215766,4.79244245,3145.1,3145.0,0.6556]
[1763495215968,4.79244245,3145.1,3145.0,0.2527]
[1763495217374,4.79244245,3145.1,3145.0,0.6556]
[1763495217679,4.51694245,3145.1,3145.0,0.6556]
[1763495218278,4.66804245,3145.1,3145.0,0.6556]
[1763495218665,4.66804245,3145.1,3145.0,0.2527]
[1763495218866,0.66659,3144.6,3144.5,0.8292]
[1763495219179,1.45670115,3144.6,3144.5,0.3137]
[1763495219379,0.94121115,3144.6,3144.5,0.8292]
[1763495219575,0.94121115,3144.6,3144.5,1.2096]
[1763495219879,0.94121115,3144.6,3144.5,0.6331]
[1763495220075,0.94121115,3144.6,3144.5,1.1486]
[1763495220776,3.21256864,3145.1,3145.0,1.13152]
[1763495221074,3.60306864,3145.1,3145.0,0.89582]
[1763495221571,3.60306864,3145.1,3145.0,0.3804]
[1763495221773,3.60306864,3145.1,3145.0,0.51542]
[1763495222582,3.60306864,3145.1,3145.0,1.13152]
[1763495222776,3.21256864,3145.1,3145.0,1.13152]
[1763495223480,3.60306864,3145.1,3145.0,0.89582]
[1763495223680,3.60306864,3145.1,3145.0,0.3804]
[1763495223884,3.21256864,3145.1,3145.0,0.6161]
[1763495224377,3.21256864,3145.1,3145.0,1.13152]
[1763495225376,3.5983,3145.5,3145.0,0.2357]
[1763495225572,0.3905,3145.3,3145.2,0.51539]
[1763495225774,0.3905,3145.0,3144.9,4.10364]
[1763495226578,0.91063864,3145.3,3145.2,0.51539]
[1763495226881,0.91063864,3145.3,3145.1,0.51541]
[1763495226882,0.3905,3145.2,3145.1,0.51541]
[1763495227282,0.90591,3145.1,3145.0,0.51542]
[1763495227580,0.3905,3145.0,3144.9,0.51543]
[1763495229182,0.3905,3145.0,3144.9,0.89583]
[1763495229681,0.90589,3145.2,3145.1,0.3804]
[1763495229983,0.90591,3145.1,3145.0,0.51541]
[1763495230183,0.3905,3145.1,3145.0,0.51541]
[1763495230781,0.3905,3145.1,3145.0,0.89581]
[1763495230980,0.00476864,3145.3,3145.2,0.89579]
[1763495232778,0.2317,3146.5,3145.5,0.2357]
[1763495232779,3.72301,3146.4,3145.5,0.2357]
[1763495232981,4.11351,3146.4,3146.3,0.3804]
[1763495233177,0.3905,3146.3,3146.2,0.89562]
[1763495233684,3.5983,3146.4,3146.3,0.89561]
[1763495233982,0.90571,3146.3,3146.2,0.518312]
[1763495234178,0.3905,3146.3,3146.2,0.898712]
[1763495235489,0.00394995,3146.4,3146.3,0.89561]
[1763495235786,0.3905,3146.3,3146.2,0.518302]
[1763495236189,0.00394995,3146.4,3146.3,0.89561]
[1763495236887,3.2078,3147.2,3146.5,0.6161]
[1763495237084,3.2078,3147.2,3146.5,3.4435]
[1763495237488,0.3905,3147.1,3147.0,1.13118]
[1763495237985,0.9092321,3147.1,3147.0,0.3804]
[1763495238288,0.3905,3147.0,3146.9,0.51511]
[1763495238486,0.90561,3146.9,3146.8,0.3804]
[1763495238882,0.90563,3146.8,3146.7,0.00476864]
[1763495239891,0.90563,3146.8,3146.7,0.51990864]
[1763495240387,0.3905,3146.8,3146.7,0.51990864]
[1763495240591,0.90563,3146.8,3146.7,0.00476864]
[1763495241093,0.90563,3146.8,3146.7,0.90030864]
[1763495242290,0.90563,3146.8,3146.7,0.38516864]
[1763495242795,0.0036521,3147.1,3147.0,1.09379]
[1763495242992,0.0036521,3147.1,3147.0,4.30159]
[1763495243191,9.87249223,3149.0,3147.5,0.2105]
[1763495243192,3.2078,3148.2,3147.5,0.2105]
[1763495243689,0.3624,3148.0,3147.9,0.88314]
[1763495243894,3.2078,3148.6,3148.5,0.88305]
[1763495244092,0.36611718,3148.6,3148.5,0.88592659]
[1763495244396,0.00476864,3148.9,3148.8,0.3682]
[1763495244695,0.00476864,3148.9,3148.8,0.883]
[1763495245588,0.00863634,3148.9,3148.8,0.883]
[1763495246090,0.00863634,3148.9,3148.5,0.00764523]
[1763495246091,0.3624,3148.6,3148.5,0.00764523]
[1763495246692,0.3624,3147.9,3147.8,3.2078]
[1763495247187,0.3624,3147.9,3147.8,3.576]
[1763495247387,0.51487,3148.4,3148.3,0.3441]
[1763495247584,3.72264,3148.6,3148.3,0.85897]
[1763495247788,0.51484,3148.6,3148.3,0.8626088]
[1763495247992,0.00863634,3148.9,3148.3,0.3477388]
[1763495248198,0.00863634,3148.9,3148.3,0.8626088]
[1763495248398,0.51484,3148.6,3148.5,0.3441]
[1763495248600,0.86174,3148.6,3148.5,0.3441]
[1763495250195,0.00863634,3148.9,3148.8,0.3441]
[1763495250702,0.52341634,3148.9,3148.8,0.3441]
[1763495250893,0.3469,3148.6,3148.5,0.2099]
[1763495251094,0.3469,3148.6,3148.5,0.3441]
[1763495251295,0.86173,3148.6,3148.5,0.3441]
[1763495251698,0.86173,3148.6,3148.3,0.5185188]
[1763495252006,0.3469,3148.4,3148.3,0.5185188]
[1763495252403,0.3469,3148.6,3148.5,0.51485]
[1763495252604,0.3469,3148.6,3148.4,0.51486]
[1763495252803,0.00863634,3148.9,3148.8,0.3441]
[1763495253004,0.3469,3148.6,3148.3,0.0036388]
[1763495253302,0.3469,3148.5,3148.4,0.51485]
[1763495253904,0.3469,3148.5,3148.4,0.85895]
[1763495254702,0.52342634,3148.9,3148.6,0.51483]